bitfinex-derivatives/quotes_ETHF0:USTF0_20250330
["timestamp","ask_amount","ask_price","bid_price","bid_amount"]
[1743316452537,3.31529,1836.4,1836.3,1.5037]
[1743316456650,1.4755,1836.4,1836.3,1.5037]
[1743316456947,2.56489,1836.4,1836.3,1.5037]
[1743316457849,1.4755,1836.4,1836.3,2.59315]
[1743316458041,1.4755,1836.4,1836.3,1.5037]
[1743316459148,1.4755,1836.4,1836.3,2.59315]
[1743316459450,2.56489,1836.4,1836.3,1.5037]
[1743316461751,1.4755,1836.4,1836.3,1.5037]
[1743316461958,2.56489,1836.4,1836.3,1.5037]
[1743316463165,1.08934,1836.5,1836.3,2.59313]
[1743316463465,2.54304,1836.5,1836.4,4.8385]
[1743316467268,2.54304,1836.5,1836.4,1.3845]
[1743316467669,2.54304,1836.5,1836.4,4.8385]
[1743316469571,2.54304,1836.5,1836.4,3.454]
[1743316473076,1.08931,1836.6,1836.4,7.75117]
[1743316473271,2.46801,1836.6,1836.5,1.4951]
[1743316473575,2.46801,1836.6,1836.5,2.1795]
[1743316473970,2.46801,1836.6,1836.5,3.26883]
[1743316474171,2.46801,1836.6,1836.5,2.1795]
[1743316474371,2.46801,1836.6,1836.5,2.9163]
[1743316474770,1.79665,1836.7,1836.5,2.9163]
[1743316474969,1.79665,1836.7,1836.6,1.4951]
[1743316476067,1.08927,1836.6,1836.5,0.00817171]
[1743316476266,3.24207,1836.6,1836.5,3.46217171]
[1743316479774,6.44987,1836.6,1836.5,3.46217171]
[1743316484075,6.44987,1836.6,1836.5,0.00817171]
[1743316485778,3.24207,1836.6,1836.5,0.00817171]
[1743316486386,6.44987,1836.6,1836.5,0.00817171]
[1743316489279,3.24207,1836.6,1836.5,0.00817171]
[1743316489481,6.44987,1836.6,1836.5,0.00817171]
[1743316501393,1.08951,1836.2,1836.1,4.1865]
[1743316501684,1.08951,1836.2,1836.1,5.5515]
[1743316502183,2.48711,1836.2,1836.1,5.5515]
[1743316513502,2.48711,1836.2,1836.1,1.365]
[1743316513701,1.08957,1836.1,1836.0,0.00817171]
[1743316513902,3.24557,1836.1,1836.0,0.00817171]
[1743316515000,3.24557,1836.1,1836.0,1.43557171]
[1743316515396,3.24557,1836.1,1836.0,0.00817171]
[1743316515796,1.08968,1835.9,1835.8,2.1095]
[1743316516398,2.52258,1835.9,1835.8,2.1095]
[1743316520201,1.08968,1835.9,1835.8,2.1095]
[1743316520405,1.08968,1835.9,1835.8,5.3173]
[1743316520705,1.08968,1835.9,1835.8,2.1095]
[1743316527809,0.00817171,1836.3,1835.8,7.8173]
[1743316528002,1.09764171,1836.3,1836.1,4.29734]
[1743316528204,1.09764171,1836.3,1836.2,6.2807]
[1743316528903,0.00817171,1836.3,1836.2,7.37021]
[1743316529211,0.00817171,1836.3,1836.2,6.2807]
[1743316530713,0.00817171,1836.3,1836.2,7.37021]
[1743316533514,0.00817171,1836.3,1836.2,6.2807]
[1743316533728,1.09762171,1836.3,1836.2,6.2807]
[1743316536120,0.00817171,1836.3,1836.2,6.2807]
[1743316536720,1.09762171,1836.3,1836.2,6.2807]
[1743316537419,1.09762171,1836.3,1836.2,9.4885]
[1743316538422,0.00817171,1836.3,1836.2,9.4885]
[1743316538625,1.09762171,1836.3,1836.2,6.0335]
[1743316538825,2.49492171,1836.3,1836.2,9.4875]
[1743316542339,2.49492171,1836.3,1836.2,6.2797]
[1743316542634,2.49492171,1836.3,1836.2,9.4875]
[1743316545434,2.49492171,1836.3,1836.2,6.2797]
[1743316545626,2.49492171,1836.3,1836.2,9.4875]
[1743316547931,0.00817171,1836.3,1836.2,10.57701]
[1743316548131,0.00817171,1836.3,1836.0,3.2078]
[1743316548333,1.08962,1836.0,1835.9,3.454]
[1743316548535,1.08974,1835.8,1835.7,3.21597171]
[1743316548838,1.08974,1835.8,1835.7,0.00817171]
[1743316549337,2.56884,1835.8,1835.7,0.00817171]
[1743316550032,3.94624,1835.8,1835.7,0.00817171]
[1743316550236,5.58089,1835.8,1835.3,53.5358]
[1743316550539,1.08998,1835.4,1835.3,53.5358]
[1743316550839,1.08998,1835.4,1835.3,56.9898]
[1743316552546,1.08998,1835.4,1835.3,54.9052]
[1743316552831,1.08998,1835.4,1835.3,58.3592]
[1743316555437,1.08998,1835.4,1835.3,54.9052]
[1743316555631,1.08998,1835.4,1835.3,6.6628]
[1743316556343,1.08998,1835.4,1835.3,3.2078]
[1743316557135,3.25768,1835.4,1835.3,3.2078]
[1743316559644,3.25768,1835.4,1835.2,3.46317171]
[1743316559645,1.09004,1835.3,1835.2,3.46317171]
[1743316559846,2.49294,1835.3,1835.2,3.46317171]
[1743316568353,2.49294,1835.3,1835.2,0.00817171]
[1743316568659,1.09016,1835.1,1835.0,7.3579]
[1743316568956,1.09016,1835.1,1835.0,6.6628]
[1743316569348,2.55736,1835.1,1835.0,6.6628]
[1743316572959,2.55736,1835.1,1835.0,3.2078]
[1743316573361,1.09022,1835.0,1834.9,1.37807171]
[1743316573557,3.19672,1835.0,1834.9,3.46417171]
[1743316575767,3.19672,1835.0,1834.9,4.84797171]
[1743316579766,3.19672,1835.0,1834.9,1.39197171]
[1743316587870,6.40452,1835.0,1834.9,0.00272387]
[1743316588076,1.09046,1834.6,1834.5,1.4913]
[1743316588279,4.29826,1834.6,1834.5,1.4913]
[1743316588480,1.09052,1834.5,1834.4,0.746]
[1743316588771,1.09069,1834.2,1834.1,5.612]
[1743316588977,1.09069,1834.2,1834.1,2.8818]
[1743316589382,1.09069,1834.2,1834.1,6.3378]
[1743316610183,1.09069,1834.2,1834.1,7.42855]
[1743316610387,1.09067,1834.3,1834.1,7.42855]
[1743316610689,1.09067,1834.3,1834.2,1.498]
[1743316613690,1.09062,1834.4,1834.2,5.79649]
[1743316614291,1.09062,1834.4,1834.3,1.4066]
[1743316618696,3.9395,1834.8,1834.3,1.4066]
[1743316618992,2.72565,1835.0,1834.4,8.0821]
[1743316618993,2.56793,1834.7,1834.4,8.0821]
[1743316619184,2.56793,1834.7,1834.5,2.49021]
[1743316619497,2.56793,1834.7,1834.6,1.3997]
[1743316619688,1.09043,1834.7,1834.6,1.3997]
[1743316631701,0.7287,1834.9,1834.6,2.49016]
[1743316631905,0.7287,1834.9,1834.7,4.1399]
[1743316632202,1.81898,1834.9,1834.8,1.4762]
[1743316634706,0.7287,1834.9,1834.8,1.4762]
[1743316634904,1.8172,1835.1,1834.8,3.27211]
[1743316635203,1.8172,1835.1,1834.9,1.483]
[1743316635506,1.8172,1835.1,1835.0,3.456]
[1743316635701,1.8172,1835.1,1835.0,4.1948]
[1743316635896,3.1781,1835.1,1835.0,4.1948]
[1743316636101,3.1781,1835.1,1834.9,1.483]
[1743316636102,1.09022,1835.0,1834.9,1.483]
[1743316636303,1.09022,1835.0,1834.9,3.456]
[1743316636304,2.45112,1835.0,1834.9,3.456]
[1743316639011,1.3609,1835.0,1834.9,3.456]
[1743316639312,1.3609,1835.0,1834.9,4.2042]
[1743316639506,1.3609,1835.0,1834.9,5.563]
[1743316640010,2.45112,1835.0,1834.9,5.563]
[1743316640899,1.3609,1835.0,1834.9,5.563]
[1743316641108,1.3609,1835.0,1834.9,6.2997]
[1743316641303,2.45112,1835.0,1834.9,6.2997]
[1743316642213,1.09022,1835.0,1834.9,6.2997]
[1743316643608,0.00817171,1835.2,1835.1,1.09016]
[1743316643909,0.00817171,1835.2,1835.1,3.456]
[1743316643910,1.0901,1835.2,1835.1,3.456]
[1743316644508,3.879,1835.2,1835.1,3.456]
[1743316645014,0.00817171,1835.3,1835.1,3.456]
[1743316645215,0.00817171,1835.3,1835.2,2.1754]
[1743316645413,2.47161171,1835.3,1835.2,2.1754]
[1743316645616,2.47161171,1835.3,1835.2,2.8613]
[1743316646511,0.00817171,1835.3,1835.2,3.9514]
[1743316646810,23.26112936,1835.7,1835.2,8.5691]
[1743316647015,23.26112936,1835.7,1835.6,4.29766]
[1743316647209,23.26112936,1835.7,1835.6,7.77666]
[1743316647510,23.26112936,1835.7,1835.6,10.27666]
[1743316648216,0.00817171,1835.8,1835.7,1.0898]
[1743316648418,0.00817171,1835.8,1835.7,2.5022]
[1743316648716,0.00817171,1835.8,1835.7,3.9081]
[1743316651709,0.00817171,1835.8,1835.7,2.0869]
[1743316651912,1.09791171,1835.8,1835.7,4.8839]
[1743316652416,2.51051171,1835.8,1835.7,4.8839]
[1743316656016,2.51051171,1835.8,1835.7,8.0917]
[1743316656514,2.51051171,1835.8,1835.7,4.8839]
[1743316656716,2.51051171,1835.8,1835.7,8.0917]
[1743316656909,1.42077171,1835.8,1835.7,8.0917]
[1743316657310,2.51051171,1835.8,1835.7,8.0917]
[1743316658811,1.08988,1835.6,1835.5,3.2078]
[1743316659018,1.08998,1835.4,1835.3,3.9597]
[1743316659220,1.08998,1835.4,1835.3,7.4457]
[1743316659619,2.57928,1835.4,1835.3,8.9061]
[1743316660121,1.08984,1835.7,1835.4,1.08994]
[1743316660321,2.57914,1835.7,1835.5,5.41]
[1743316660524,2.57914,1835.7,1835.6,4.9454]
[1743316660822,1.08984,1835.7,1835.6,5.6973]
[1743316661014,1.08984,1835.7,1835.6,4.9454]
[1743316665525,1.08984,1835.7,1835.6,3.485]
[1743316669622,1.41397171,1835.8,1835.6,3.485]
[1743316669826,2.50376171,1835.8,1835.7,1.4939]
[1743316673924,1.0898,1835.7,1835.6,3.485]
[1743316674125,1.0898,1835.7,1835.6,4.8679]
[1743316676023,2.5062,1835.7,1835.6,4.8679]
[1743316677926,2.5062,1835.7,1835.6,1.3829]
[1743316678124,1.08986,1835.6,1835.5,3.9536]
[1743316678426,2.56606,1835.6,1835.5,7.4276]
[1743316678617,2.56606,1835.6,1835.5,6.6818]
[1743316679226,2.56606,1835.6,1835.5,8.0817]
[1743316680428,0.72647171,1835.8,1835.5,8.0817]
[1743316680629,1.09793171,1835.8,1835.7,3.2078]
[1743316680832,1.09793171,1835.8,1835.6,3.27335]
[1743316681025,1.09793171,1835.8,1835.7,2.1446]
[1743316684034,0.00817171,1835.8,1835.7,5.3524]
[1743316684337,1.09791171,1835.8,1835.7,5.3524]
[1743316684834,0.7158,1836.1,1835.7,5.3524]
[1743316684835,3.2078,1836.2,1835.7,5.3524]
[1743316685030,1.08962,1836.1,1835.8,6.05631]
[1743316685333,1.08962,1836.1,1835.9,5.4286]
[1743316685635,1.08962,1836.1,1836.0,1.4926]
[1743316688134,1.08962,1836.1,1836.0,2.2387]
[1743316689239,0.00817171,1836.2,1836.0,2.2387]
[1743316689438,0.00817171,1836.2,1836.1,4.8607]
[1743316690337,1.09768171,1836.2,1836.1,4.8607]
[1743316690638,1.83288171,1836.2,1836.1,4.8607]
[1743316692444,0.00817171,1836.2,1836.1,8.0685]
[1743316693652,1.09768171,1836.2,1836.1,8.0685]
[1743316693836,2.56028171,1836.2,1836.1,8.0685]
[1743316695138,0.00817171,1836.2,1836.1,5.95027]
[1743316695341,0.00817171,1836.2,1836.1,4.8607]
[1743316695542,1.08936,1836.5,1836.3,1.08943]
[1743316695842,1.3861,1836.6,1836.4,7.52766]
[1743316696040,1.3861,1836.6,1836.5,1.4915]
[1743316696840,1.80022171,1836.7,1836.5,1.4915]
[1743316697242,3.18632171,1836.7,1836.5,1.4915]
[1743316697443,3.18632171,1836.7,1836.5,4.6993]
[1743316697850,3.18632171,1836.7,1836.6,1.4915]
[1743316702151,2.09707171,1836.7,1836.6,2.58077]
[1743316702643,2.09707171,1836.7,1836.6,1.4915]
[1743316702850,3.18628171,1836.7,1836.6,1.4915]
[1743316703148,2.09707171,1836.7,1836.6,2.58077]
[1743316703349,1.39427171,1836.7,1836.6,2.58077]
[1743316704449,1.39427171,1836.7,1836.6,1.4915]
[1743316705047,2.48348171,1836.7,1836.6,1.4915]
[1743316705746,1.39427171,1836.7,1836.6,1.4915]
[1743316706350,1.39427171,1836.7,1836.6,2.58077]
[1743316706648,0.00817171,1836.7,1836.6,2.58077]
[1743316706856,1.3574,1836.9,1836.8,1.08915]
[1743316707051,0.731,1837.0,1836.8,7.77195]
[1743316707256,0.731,1837.0,1836.9,1.4715]
[1743316707453,2.1813,1837.0,1836.9,1.4715]
[1743316708156,1.4503,1837.0,1836.9,2.56059]
[1743316709665,0.7409,1837.1,1837.0,1.08903]
[1743316709871,2.1912,1837.1,1837.0,3.28363]
[1743316710166,2.1912,1837.1,1837.0,2.1946]
[1743316710359,2.1912,1837.1,1837.0,3.28363]
[1743316710565,1.4503,1837.1,1837.0,3.28363]
[1743316710765,0.6981,1837.2,1837.0,3.28363]
[1743316710966,2.1903,1837.2,1837.1,4.8944]
[1743316712068,4.29669,1837.3,1837.1,5.98337]
[1743316712376,4.29669,1837.3,1837.2,1.4184]
[1743316715571,1.08889,1837.3,1837.2,1.4184]
[1743316715971,1.79954,1837.4,1837.2,1.4184]
[1743316716278,1.78145,1837.5,1837.2,1.4184]
[1743316716477,1.78145,1837.5,1837.3,0.7506]
[1743316716777,1.78145,1837.5,1837.4,4.8671]
[1743316717082,0.6927,1837.5,1837.4,4.8671]
[1743316717280,1.78144,1837.5,1837.4,4.8671]
[1743316718179,0.6927,1837.5,1837.4,4.8671]
[1743316718377,1.78144,1837.5,1837.4,4.8671]
[1743316718579,1.78144,1837.5,1837.4,3.474]
[1743316722174,1.78144,1837.5,1837.4,3.47]
[1743316722384,0.6927,1837.5,1837.3,3.47]
[1743316722579,1.08897,1837.1,1837.0,54.94887171]
[1743316722781,1.08897,1837.1,1837.0,58.42287171]
[1743316723884,1.08897,1837.1,1837.0,56.99797171]
[1743316724479,1.08897,1837.1,1837.0,58.42287171]
[1743316725980,2.49147,1837.1,1837.0,58.42287171]
[1743316727979,1.4025,1837.1,1837.0,59.51190171]
[1743316728183,1.4025,1837.1,1837.0,58.42287171]
[1743316728780,1.7733,1837.3,1837.1,1.08896]
[1743316728987,1.7733,1837.3,1837.2,1.3994]
[1743316729481,1.08897,1837.1,1837.0,53.52397171]
[1743316729686,1.08897,1837.1,1837.0,56.99497171]
[1743316729886,3.26575,1837.2,1837.0,56.99497171]
[1743316730081,1.4418,1837.1,1837.0,58.39437171]
[1743316730283,1.4418,1837.1,1837.0,56.99497171]
[1743316730583,2.53077,1837.1,1837.0,56.99497171]
[1743316731789,1.4418,1837.1,1837.0,56.99497171]
[1743316732485,2.53077,1837.1,1837.0,56.99497171]
[1743316732978,2.53077,1837.1,1837.0,53.78717171]
[1743316733487,1.4418,1837.1,1837.0,54.87620171]
[1743316733682,1.82395,1837.2,1837.0,58.08400171]
[1743316733990,1.08891,1837.2,1837.0,58.08398171]
[1743316734492,2.53161,1837.2,1837.0,58.08398171]
[1743316734785,1.77327,1837.3,1837.1,1.08895]
[1743316734984,1.77327,1837.3,1837.2,0.7522]
[1743316734985,3.21597,1837.3,1837.2,0.7522]
[1743316735490,3.2078,1837.7,1837.2,5.04889]
[1743316735786,1.08877,1837.5,1837.3,4.2119]
[1743316736290,1.08877,1837.5,1837.3,5.30075]
[1743316737288,1.4427,1837.6,1837.4,1.08878]
[1743316737485,2.53138,1837.6,1837.4,1.08878]
[1743316738283,1.4427,1837.6,1837.4,1.08879]
[1743316738499,1.4427,1837.6,1837.5,0.7025]
[1743316739493,2.53138,1837.6,1837.5,0.7025]
[1743316740095,1.4427,1837.6,1837.5,0.7025]
[1743316740989,2.53138,1837.6,1837.5,0.7025]
[1743316741192,1.4427,1837.6,1837.5,0.7025]
[1743316742291,2.53138,1837.6,1837.5,0.7025]
[1743316742692,1.4496,1837.8,1837.5,0.7025]
[1743316742693,2.53819,1837.8,1837.5,0.7025]
[1743316742993,1.4035,1837.8,1837.6,7.76245]
[1743316743189,1.4035,1837.8,1837.6,7.4097]
[1743316743393,2.49207,1837.8,1837.6,8.49835]
[1743316743692,3.21237,1837.8,1837.6,8.49835]
[1743316744486,3.21239,1837.8,1837.6,7.4097]
[1743316744687,2.49102,1837.7,1837.6,7.4097]
[1743316744887,3.23102,1837.7,1837.6,7.4097]
[1743316746095,3.23102,1837.7,1837.6,8.8552]
[1743316746694,2.1424,1837.7,1837.6,8.8552]
[1743316747085,3.23102,1837.7,1837.6,8.8552]
[1743316747488,2.1424,1837.7,1837.6,8.8552]
[1743316748697,3.23102,1837.7,1837.6,8.8552]
[1743316749793,3.23102,1837.7,1837.6,6.6698]
[1743316751400,3.23102,1837.7,1837.6,8.1095]
[1743316754404,2.1424,1837.7,1837.6,8.1095]
[1743316755997,2.1424,1837.7,1837.6,9.19818]
[1743316757106,1.4024,1837.7,1837.6,9.19818]
[1743316758711,1.08853,1837.9,1837.7,1.08862]
[1743316758916,2.58123,1837.9,1837.8,1.4028]
[1743316759607,1.4927,1837.9,1837.8,5.69916]
[1743316759911,1.444,1838.0,1837.9,1.0885]
[1743316760206,1.4927,1838.1,1838.0,1.08844]
[1743316760408,2.56015,1838.4,1838.1,1.08834]
[1743316760599,1.4927,1838.2,1838.1,4.29614]
[1743316760803,1.4927,1838.2,1838.1,7.75914]
[1743316761712,1.4719,1838.4,1838.1,6.6708]
[1743316761914,1.4719,1838.4,1838.2,1.08827]
[1743316762112,2.9369,1838.4,1838.3,1.08826]
[1743316762706,1.465,1838.4,1838.3,1.08826]
[1743316762907,23.26112936,1838.5,1838.3,4.29606]
[1743316763213,1.465,1838.5,1838.4,4.1622]
[1743316763414,1.465,1838.5,1838.4,4.8528]
[1743316763712,1.465,1838.5,1838.4,5.941]
[1743316764015,1.08823,1838.4,1838.1,4.29613]
[1743316764219,1.465,1838.3,1838.2,3.465]
[1743316764715,1.465,1838.3,1838.1,4.29613]
[1743316764917,2.2057,1838.3,1838.2,4.55432]
[1743316765318,1.465,1838.3,1838.2,4.55432]
[1743316767122,1.465,1838.3,1838.2,7.76212]
[1743316767326,1.82888,1838.5,1838.2,6.6738]
[1743316767514,0.7407,1838.5,1838.3,1.08824]
[1743316767819,3.28708,1838.5,1838.3,0.6773]
[1743316768119,1.0882,1838.4,1838.3,0.6773]
[1743316768315,1.3689,1838.4,1838.3,0.6773]
[1743316768614,2.4571,1838.4,1838.2,6.6738]
[1743316768817,1.08826,1838.3,1838.2,3.2078]
[1743316769022,1.08826,1838.3,1838.2,6.6728]
[1743316769023,1.3689,1838.3,1838.2,6.6728]
[1743316769223,1.3689,1838.3,1838.2,7.76112]
[1743316773026,1.08822,1838.4,1838.2,7.76112]
[1743316773228,2.55122,1838.4,1838.2,7.76112]
[1743316773635,1.463,1838.3,1838.2,7.76112]
[1743316773837,2.55126,1838.3,1838.2,6.6728]
[1743316776029,2.55126,1838.3,1838.2,8.031]
[1743316778936,2.55126,1838.3,1838.2,8.03]
[1743316778937,1.463,1838.3,1838.2,8.03]
[1743316779137,2.55126,1838.3,1838.2,8.03]
[1743316780334,2.55126,1838.3,1838.2,3.464]
[1743316786538,1.463,1838.3,1838.2,4.2032]
[1743316786733,2.55126,1838.3,1838.2,5.6686]
[1743316787345,1.463,1838.3,1838.2,5.6686]
[1743316787543,2.55126,1838.3,1838.2,5.6686]
[1743316788335,0.7407,1838.5,1838.2,8.8764]
[1743316788530,1.435,1838.4,1838.3,1.4654]
[1743316789843,1.08826,1838.3,1838.2,3.464]
[1743316790143,1.76546,1838.3,1838.2,8.1341]
[1743316792342,0.6772,1838.3,1838.2,8.1341]
[1743316792536,1.08826,1838.3,1838.2,8.1341]
[1743316792840,2.51946,1838.3,1838.2,8.1341]
[1743316793041,1.08823,1838.4,1838.2,9.22242]
[1743316793234,1.08823,1838.4,1838.3,2.1314]
[1743316793442,1.82888,1838.5,1838.3,2.8161]
[1743316793738,1.82888,1838.5,1838.4,1.3869]
[1743316796444,2.53248,1838.5,1838.4,1.3869]
[1743316797947,1.4443,1838.5,1838.2,3.9276]
[1743316798148,1.3913,1838.4,1838.3,3.466]
[1743316798443,2.4795,1838.4,1838.3,4.9076]
[1743316800336,1.4443,1838.5,1838.3,5.99586]
[1743316800337,2.53249,1838.5,1838.3,5.99586]
[1743316800649,2.53249,1838.5,1838.4,1.4416]
[1743316800849,2.53249,1838.5,1838.4,2.1525]
[1743316801844,2.53249,1838.5,1838.4,1.4416]
[1743316806749,1.4443,1838.5,1838.2,4.6385]
[1743316806948,2.53244,1838.5,1838.4,3.461]
[1743316807249,5.74024,1838.5,1838.4,3.461]
[1743316809257,2.53244,1838.5,1838.4,3.461]
[1743316814359,1.08814,1838.5,1838.4,4.1791]
[1743316816162,1.08814,1838.5,1838.4,3.461]
[1743316817759,1.08814,1838.5,1838.4,4.1975]
[1743316823566,1.08814,1838.5,1838.4,3.461]
[1743316824166,1.78763,1838.6,1838.4,3.461]
[1743316824366,1.78763,1838.6,1838.5,1.3644]
[1743316825267,1.77527,1838.7,1838.5,1.3644]
[1743316825472,1.08808,1838.6,1838.5,2.0948]
[1743316826267,2.53708,1838.6,1838.5,2.0948]
[1743316828166,2.53708,1838.6,1838.5,4.8234]
[1743316828466,2.53708,1838.6,1838.5,3.459]
[1743316830868,2.53708,1838.6,1838.5,4.816]
[1743316836076,1.449,1838.6,1838.5,4.816]
[1743316836374,2.53708,1838.6,1838.5,4.816]
[1743316840780,2.53708,1838.6,1838.5,1.357]
[1743316841080,1.08814,1838.5,1838.4,3.2078]
[1743316841274,2.46794,1838.5,1838.4,8.019]
[1743316844076,2.46794,1838.5,1838.4,3.2078]
[1743316844283,1.0882,1838.4,1838.3,1.3765]
[1743316844488,4.0095,1838.4,1838.3,4.8305]
[1743316845683,1.08819,1838.5,1838.3,4.8305]
[1743316845984,2.52319,1838.5,1838.4,1.3765]
[1743316846283,2.52319,1838.5,1838.4,2.0857]
[1743316852289,1.435,1838.5,1838.4,3.1739]
[1743316852488,5.04196,1838.7,1838.4,3.1739]
[1743316852682,1.08808,1838.6,1838.5,2.1519]
[1743316852882,1.08808,1838.6,1838.5,5.6039]
[1743316853183,1.3824,1838.6,1838.5,5.6039]
[1743316854182,2.47048,1838.6,1838.5,5.6039]
[1743316854488,1.3824,1838.6,1838.5,5.6039]
[1743316854887,1.83414,1838.7,1838.5,5.6039]
[1743316855092,1.83414,1838.7,1838.6,1.4511]
[1743316855891,1.83412,1838.7,1838.6,1.4511]
[1743316862387,2.53642,1838.7,1838.6,1.4511]
[1743316866591,1.4484,1838.7,1838.6,1.4511]
[1743316866985,2.9186,1838.7,1838.6,1.4511]
[1743316867383,4.00662,1838.7,1838.6,1.4511]
[1743316868485,4.00662,1838.7,1838.6,2.1578]
[1743316868686,2.9186,1838.7,1838.6,2.1578]
[1743316868887,4.00662,1838.7,1838.6,2.1578]
[1743316869185,2.55822,1838.7,1838.6,2.1578]
[1743316869381,1.4702,1838.7,1838.6,2.1578]
[1743316870296,1.81717,1839.0,1838.7,1.08801]
[1743316870594,1.08791,1838.9,1838.8,6.2256]
[1743316870782,2.44861,1838.9,1838.8,6.2256]
[1743316872696,2.44861,1838.9,1838.8,5.5276]
[1743316872995,2.44861,1838.9,1838.8,4.8366]
[1743316874289,2.44861,1838.9,1838.8,3.45]
[1743316876199,1.08802,1838.7,1838.6,1.4197]
[1743316876393,1.08802,1838.7,1838.6,4.8697]
[1743316876806,3.25272,1838.7,1838.6,4.8697]
[1743316877695,1.08792,1838.9,1838.6,5.4137]
[1743316877898,1.08792,1838.9,1838.7,3.98609]
[1743316877899,1.3944,1838.9,1838.7,3.98609]
[1743316878195,1.3944,1838.9,1838.8,1.4535]
[1743316878500,3.9573,1839.0,1838.8,2.54146]
[1743316878699,3.9573,1839.0,1838.9,3.451]
[1743316878899,6.43955,1839.0,1838.9,4.9045]
[1743316879096,5.3517,1839.0,1838.9,4.9045]
[1743316879302,3.2078,1839.0,1838.9,4.9045]
[1743316880002,2.48221,1839.1,1838.9,4.9045]
[1743316880195,1.3944,1839.1,1839.0,1.4829]
[1743316880500,2.48219,1839.1,1839.0,2.9384]
[1743316881194,1.3944,1839.1,1839.0,2.9384]
[1743316881597,2.48219,1839.1,1839.0,2.9384]
[1743316881799,1.3944,1839.1,1839.0,2.9384]
[1743316882900,2.48219,1839.1,1839.0,2.9384]
[1743316887207,1.3944,1839.1,1839.0,2.9384]
[1743316887504,1.3944,1839.1,1839.0,4.02625]
[1743316887708,1.3944,1839.1,1839.0,2.9384]
[1743316888004,0.7518,1839.2,1839.0,4.02625]
[1743316888306,0.7518,1839.2,1839.1,1.3904]
[1743316888506,2.2029,1839.2,1839.1,1.3904]
[1743316888805,3.29063,1839.2,1839.1,1.3904]
[1743316891002,2.2029,1839.2,1839.1,1.3904]
[1743316893009,3.29063,1839.2,1839.1,1.3904]
[1743316893205,2.2029,1839.2,1839.1,1.3904]
[1743316893609,1.4511,1839.2,1839.1,5.68599]
[1743316893809,1.8372,1839.3,1839.1,4.5982]
[1743316894107,1.8372,1839.3,1839.2,4.9407]
[1743316896005,3.2678,1839.3,1839.2,4.9407]
[1743316896209,3.2678,1839.3,1839.2,3.449]
[1743316897712,3.26777,1839.3,1839.2,3.449]
[1743316904118,1.08779,1839.1,1839.0,1.467]
[1743316904320,1.08779,1839.1,1839.0,4.916]
[1743316904813,3.17679,1839.1,1839.0,4.916]
[1743316912318,2.089,1839.1,1839.0,4.916]
[1743316916024,2.089,1839.1,1839.0,6.00385]
[1743316916329,2.089,1839.1,1839.0,6.70695]
[1743316917235,0.685,1839.2,1839.1,1.08779]
[1743316917436,2.1357,1839.2,1839.1,2.46969]
[1743316923546,0.6911,1839.3,1839.2,1.08773]
[1743316923741,2.1558,1839.3,1839.2,3.29443]
[1743316926336,3.2078,1839.6,1839.2,2.2067]
[1743316926641,3.2078,1839.6,1839.4,1.08758]
[1743316926843,1.4972,1839.5,1839.4,1.08758]
[1743316927144,2.2159,1839.5,1839.4,1.08758]
[1743316928448,2.2159,1839.5,1839.3,4.53663]
[1743316928644,1.4972,1839.4,1839.3,4.53663]
[1743316931440,0.7187,1839.5,1839.4,1.08761]
[1743316931639,5.3594,1839.6,1839.4,2.50951]
[1743316931840,2.1516,1839.6,1839.4,2.50951]
[1743316932040,1.4634,1839.6,1839.5,1.08755]
[1743316932242,1.4634,1839.6,1839.5,4.29535]
[1743316933446,1.4681,1839.8,1839.6,1.08746]
[1743316933749,1.4874,1839.7,1839.6,4.53646]
[1743316934146,2.57483,1839.7,1839.6,3.449]
[1743316934450,1.4874,1839.7,1839.6,3.449]
[1743316934651,1.4874,1839.7,1839.6,4.53649]
[1743316936847,1.4874,1839.7,1839.6,5.24809]
[1743316941753,1.4874,1839.7,1839.6,4.53649]
[1743316946259,1.4874,1839.7,1839.6,5.93189]
[1743316949051,2.57483,1839.7,1839.6,4.8434]
[1743316949354,2.57483,1839.7,1839.6,3.448]
[1743316949659,2.57486,1839.7,1839.5,9.11375]
[1743316949854,2.1368,1839.6,1839.5,9.11375]
[1743316953364,1.83502,1839.8,1839.5,9.11375]
[1743316953567,1.08743,1839.7,1839.6,1.3716]
[1743316953767,0.7476,1839.8,1839.6,2.45909]
[1743316953961,4.06279,1839.8,1839.6,3.19729]
[1743316954262,4.06279,1839.8,1839.7,1.3716]
[1743316954463,2.57469,1839.8,1839.7,1.3716]
[1743316955367,1.4873,1839.8,1839.7,1.3716]
[1743316955564,2.57467,1839.8,1839.7,1.3716]
[1743316956458,5.78247,1839.8,1839.7,3.448]
[1743316958664,1.08746,1839.7,1839.5,4.8462]
[1743316958864,1.08768,1839.3,1839.2,3.448]
[1743316959058,1.08768,1839.3,1839.2,4.8462]
[1743316960662,1.08768,1839.3,1839.2,1.3982]
[1743316960861,1.08773,1839.2,1839.1,6.6558]
[1743316961065,1.77513,1839.2,1839.1,3.2078]
[1743316961964,1.77513,1839.2,1839.1,4.628]
[1743316962160,1.77513,1839.2,1839.1,1.4202]
[1743316963867,1.77513,1839.2,1838.9,50.95537171]
[1743316964068,1.79859,1839.1,1839.0,1.3679]
[1743316966268,3.29839,1839.1,1839.0,1.3679]
[1743316967266,3.29839,1839.1,1838.9,0.00817171]
[1743316967267,1.08785,1839.0,1838.9,0.00817171]
[1743316967567,1.08808,1838.6,1838.4,3.448]